Cogmind - Beta 14 *** ADVENTURER MODE // 2024.08.13 @ 12:23:47 Player: AnotherZach Result: Destroyed by OM-XTB(R) with Subdweller Laser Performance ------------- Evolutions (0) 0 Regions Visited (2) 400 Robots Destroyed (23) 115 Value Destroyed (528) 528 Prototype IDs (0) 0 Alien Tech Used (0) 0 Bonus (0) 0 TOTAL SCORE: 1043 Bonus ------- None Cogmind --------- Core Integrity 0/250 Matter 182/300 Energy 250/250 System Corruption 0% Temperature Cool (6) Movement Flying (197) Ox2 Location -10/Subcaves Parts ------- > --- POWER (1) -------- Ion Engine > --- PROPULSION (2) --- Flight Unit Flight Unit > --- UTILITY (2) ------ Small Storage Unit Subdweller Optics > --- WEAPON (2) ------- Subdweller Laser Battle Rifle > --- INVENTORY (8) ---- Subdweller Power Source Subdweller Power Source Flight Unit Subdweller Optics Seismic Detector Heavy Riot Gun Peak State ------------ > --- POWER ------------ Ion Engine > --- PROPULSION ------- Light Treads Spiked Treads > --- UTILITY ---------- Small Storage Unit Seismic Detector > --- WEAPON ----------- Heavy Riot Gun Battle Cannon > --- INVENTORY -------- Subdweller Power Source Flight Unit Flight Unit Flight Unit Subdweller Optics Seismic Detector Subdweller Laser Assault Rifle [Rating: 13] Favorites ----------- Power Ion Engine Engine Ion Engine Propulsion Light Treads Treads Light Treads Wheel Compact Wheel Flight Unit Flight Unit Utility Small Storage Unit Device Seismic Detector Storage Small Storage Unit Weapon Assault Rifle Energy Gun Subdweller Laser Ballistic Gun Assault Rifle Ballistic Cannon Battle Cannon Special Weapon Mining Laser Build | -11 -10 -10 ------- Run | Yrd Mat Sub Slots Evolved . | . . . Power . | . . . Propulsion . | . . . Utility . | . . . Weapon . | . . . Parts Attached 31 | 7 6 18 Power 5 | 1 1 3 Engine 5 | 1 1 3 Core . | . . . Reactor . | . . . Propulsion 10 | 2 3 5 Treads 3 | . . 3 Leg . | . . . Wheel 3 | 2 1 . Hover . | . . . Flight 4 | . 2 2 Utility 3 | 2 . 1 Device 2 | 1 . 1 Storage 1 | 1 . . Processor . | . . . Hackware . | . . . Protection . | . . . Artifact . | . . . Weapon 13 | 2 2 9 Energy Gun 3 | . . 3 Energy Cannon . | . . . Ballistic Gun 8 | 2 1 5 Ballistic Cannon 1 | . . 1 Launcher . | . . . Special Weapon 1 | . 1 . Impact Weapon . | . . . Slashing Weapon . | . . . Piercing Weapon . | . . . Special Melee Weapon . | . . . Unidentified Prototypes . | . . . Parts Lost 5 | . . 5 Power 1 | . . 1 Propulsion 1 | . . 1 Utility . | . . . Weapon 3 | . . 3 Highest Loss Streak 2 | . . 2 To Critical Strikes 1 | . . 1 Average Slot Usage (%) 99 | . 100 99 Engine 13 | . 14 13 Treads 24 | . . 24 Flight 2 | . 5 2 Device 14 | . 14 14 Storage 14 | . 14 14 Energy Gun 5 | . . 5 Ballistic Gun 20 | . 18 20 Ballistic Cannon 1 | . . 1 Special Weapon 1 | . 9 . Peak Build Rating 13 | 7 7 13 Average Rating 9 | 5 6 9 On Entrance 4 | . 7 6 Naked Turns . | . . . Heaviest Build 18 | 15 15 18 Greatest Support 40 | 32 32 40 Greatest Overweight (x) 2 | . 1 2 Average Overweight (x) . | . . . Largest Inventory Capacity 8 | 8 8 8 Average Capacity 7 | 7 8 8 Most Carried 8 | 8 8 8 Average Carried 7 | 3 7 7 Final Capacity 8 | 8 8 8 Final Carried 8 | 8 8 6 Class Distribution -------------------- 89% | Mutant 10% | Scavenger-Mutant Dominant Class ---------------- Mutant | -10/Materials Mutant | -10/Subcaves Resources | -11 -10 -10 ----------- Run | Yrd Mat Sub Matter Collected 798 | 267 . 531 Remotely . | . . . Salvage Created 653 | 225 39 389 Parts 49 | 15 6 28 Haulers Intercepted . | . . . Recyclers Shooed . | . . . Parts Field Recycled . | . . . Retrieved Matter . | . . . Parts Self-Destructed 2 | . . 2 Prevented . | . . . Kills | -11 -10 -10 ------- Run | Yrd Mat Sub Combat Hostiles Destroyed 15 | . 3 12 Guns 14 | . 3 11 Cannons 1 | . . 1 Classes Destroyed 7 | 3 1 3 Worker 2 | 2 . . Tunneler 5 | 5 . . Recycler 1 | 1 . . Swarmer 4 | . 3 1 Sentry 1 | . . 1 Artisan 1 | . . 1 Subdweller 10 | . . 10 Best Kill Streak 5 | 5 2 2 Combat Bots Only 2 | . 2 2 Max Kills in Single Turn 1 | 1 1 1 Gunslinging . | . . . Exploded . | . . . Melee . | . . . Uniques/NPCs Destroyed . | . . . Combat | -11 -10 -10 -------- Run | Yrd Mat Sub Hostile Shots Fired 99 | . 4 95 Missed 28 | . 2 26 Damage Taken 1170 | . 15 1155 Core 254 | . . 254 Absorbed by Shields . | . . . Ignored by Resistances 333 | . 4 329 Core Remaining (%) 100 | 100 . . Volleys Fired 117 | 18 10 89 Largest 2 | 2 2 2 Hottest 120 | 40 120 100 Shots Fired 208 | 36 14 158 Gun 166 | 36 7 123 Cannon 17 | . . 17 Launcher . | . . . Special 25 | . 7 18 Kinetic 139 | 36 7 96 Thermal 58 | . 7 51 Explosive . | . . . Electromagnetic 11 | . . 11 Robot Hit Streak 39 | 13 14 39 Robot Miss Streak 1 | 1 1 1 Penetration Max . | . . . Secondary Targets 3 | . 1 2 Max Gunslinging Chain 1 | . 1 1 Shots Hit Robots 124 | 28 3 93 Core Hits 41 | 9 3 29 Critical Kills 1 | 1 . . Critical Parts Destroyed 1 | . . 1 Critical Strikes 3 | 1 . 2 Destroy 3 | 1 . 2 Melee Attacks . | . . . Impact . | . . . Slashing . | . . . Piercing . | . . . Sneak Attacks . | . . . Combat Hostiles . | . . . Follow-up Attacks . | . . . Damage Inflicted 1638 | 332 38 1268 Guns 1475 | 332 38 1105 Cannons 163 | . . 163 Explosions . | . . . Melee . | . . . Ramming . | . . . Kinetic 1196 | 332 38 826 Thermal 331 | . . 331 Explosive . | . . . Electromagnetic 111 | . . 111 Impact . | . . . Slashing . | . . . Piercing . | . . . Highest Corruption . | . . . Average Corruption . | . . . Corruption Purged . | . . . Corruption Blocked . | . . . Overload Shots . | . . . Overflow Damage . | . . . Projectiles . | . . . Explosions . | . . . Melee . | . . . Knockbacks 3 | . . 3 Impact . | . . . Kinetic 3 | . . 3 Secondary . | . . . Self-Inflicted Damage . | . . . Shots . | . . . Rammed . | . . . Targets Rammed . | . . . Kicked . | . . . Crushed . | . . . Highest Temperature 208 | . 100 208 Average Temperature 32 | . 52 22 Received Heat Transfer 455 | . . 455 Siege Activations . | . . . Robots Corrupted . | . . . Combat Hostiles . | . . . Parts Fried . | . . . Impact Corruptions . | . . . Robots Melted . | . . . Combat Hostiles . | . . . Parts Melted 2 | . . 2 Heat Transferred 400 | . . 400 Parts Sabotaged . | . . . Parts Stolen . | . . . Parts Stripped . | . . . Power Chain Reactions . | . . . Alert | -11 -10 -10 ------- Run | Yrd Mat Sub Peak Influence 107 | 40 107 . Initial 22 | . 22 . Average 38 | 18 72 . Maximum Alert Level . | . . . Low Security (%) 100 | 100 100 . Level 1 . | . . . Level 2 . | . . . Level 3 . | . . . Level 4 . | . . . Level 5 . | . . . High Security . | . . . Max Security . | . . . Squads Dispatched . | . . . Investigation . | . . . Extermination . | . . . Reinforcement . | . . . Assault . | . . . Garrison . | . . . Intercept . | . . . Searches Triggered . | . . . Construction Impeded . | . . . Haulers Reinforced . | . . . Active Scanning Responses . | . . . Cargo Convoy Interrupts . | . . . Stealth | -11 -10 -10 --------- Run | Yrd Mat Sub Distress Signals . | . . . Communications Jammed . | . . . Distress Signals . | . . . Times Spotted 18 | . 3 15 Peak Tracking Total 4 | . 3 4 Tactical Retreats 1 | . 1 . Traps | -11 -10 -10 ------- Run | Yrd Mat Sub Traps Triggered . | . . . Indirectly . | . . . Trap Hack Attempts . | . . . Triggered . | . . . Disarmed . | . . . Reprogrammed . | . . . Reused . | . . . Traps Extracted . | . . . Installed . | . . . Triggered . | . . . Machines | -11 -10 -10 ---------- Run | Yrd Mat Sub Machines Disabled . | . . . Max in Single Turn . | . . . Machines Repaired . | . . . Machines Dismantled . | . . . Machines Sabotaged . | . . . Overloaded Fab Kills . | . . . Hacking | -11 -10 -10 --------- Run | Yrd Mat Sub Machines Accessed 1 | . . 1 Terminals . | . . . Fabricators . | . . . Repair Stations . | . . . Recycling Units . | . . . Scanalyzers . | . . . Garrison Access . | . . . Total Hacks 5 | . . 5 Successful 5 | . . 5 Failed . | . . . Catastrophic . | . . . Database Lockouts . | . . . Manual . | . . . Terminals . | . . . Fabricators . | . . . Repair Stations . | . . . Recycling Units . | . . . Scanalyzers . | . . . Garrison Access . | . . . Terminal Hacks 5 | . . 5 Record 5 | . . 5 Fabricator Hacks . | . . . Repair Station Hacks . | . . . Recycling Unit Hacks . | . . . Scanalyzer . | . . . Garrison Access Hacks . | . . . Unauthorized Hacks . | . . . Terminals . | . . . Fabricators . | . . . Repair Stations . | . . . Recycling Units . | . . . Scanalyzers . | . . . Garrison Access . | . . . Data Cores Recovered . | . . . Used . | . . . Hacking Detections . | . . . Full Trace Events . | . . . Feedback Events . | . . . Feedback Blocked . | . . . Robot Schematics Acquired . | . . . Robots Built . | . . . Authchips . | . . . Time . | . . . Total Robot Build Rating . | . . . Part Schematics Acquired . | . . . Parts Built . | . . . Authchips . | . . . Time . | . . . Total Part Build Rating . | . . . Parts Repaired . | . . . Time . | . . . Parts Recycled . | . . . Recycled Matter . | . . . Retrieved Matter . | . . . Retrieved Components . | . . . Parts Scanalyzed . | . . . Part Schematics Acquired . | . . . Parts Damaged . | . . . Bothacking | -11 -10 -10 ------------ Run | Yrd Mat Sub Used RIF Installer . | . . . Robots Hacked . | . . . Non-combat . | . . . Combat . | . . . Robot Hacks Applied . | . . . Relay Couplers Released . | . . . Fabnet Peak Effective % . | . . . Robots Rewired . | . . . Allies Hacked . | . . . Hacks Repelled . | . . . Allies | -11 -10 -10 -------- Run | Yrd Mat Sub Total Allies . | . . . Largest Group . | . . . Highest-Rated Group . | . . . Highest-Rated Ally . | . . . Total Orders . | . . . Ally Attacks . | . . . Total Damage . | . . . Kills . | . . . Allies Corrupted . | . . . Allies Melted . | . . . Intel | -11 -10 -10 ------- Run | Yrd Mat Sub Robot Analysis Total . | . . . Derelict Logs Recovered 2 | . . 2 Drone Launches . | . . . Drone Recoveries . | . . . Exploration | -11 -10 -10 ------------- Run | Yrd Mat Sub Turns Passed 3138 | 176 99 2863 Spaces Moved 1775 | 108 37 1630 Core 15 | 15 . . Treads 1454 | . . 1454 Legs . | . . . Wheels 118 | 93 25 . Hover . | . . . Flight 188 | . 12 176 Fastest Speed 37 | 50 37 37 Average Speed 149 | 93 99 154 Slowest Speed 197 | 100 117 197 Overloaded Moves . | . . . Propulsion Burnouts . | . . . Robots Hopped . | . . . Cave-ins Triggered . | . . . Exploration Rate (%) 26 | 5 7 66 Regions Visited 2 Branch Regions 1 Pre-discovered Areas 2 | . . 2 Known Exits Taken . | . . . Unknown Exits Taken 2 | 1 1 . Scrap Searched 4 | . . 4 Spaces Dug . | . . . Terrain Destroyed 2 | . . 2 Melee . | . . . Projectile 2 | . . 2 AOE . | . . . Terrain Rammed . | . . . Walls Destroyed . | . . . Machines Disabled . | . . . Actions | -11 -10 -10 --------- Run | Yrd Mat Sub Total 2002 | 147 73 1782 Wait 23 | . 5 18 Move 1773 | 107 36 1630 Hop . | . . . Pick Up 37 | 15 7 15 Fast Attach . | . . . Attach 19 | 7 3 9 Detach 2 | . 1 1 Swap 12 | . 3 9 Drop 19 | . 8 11 Fire 117 | 18 10 89 Melee . | . . . Ram . | . . . Kick . | . . . Crush . | . . . Escape Stasis . | . . . Rewire . | . . . Trap . | . . . Miscellaneous . | . . . Route ------- -11/Scrapyard -10/Materials -10/Subcaves (discovered 3 exits: *Mat x2 / Rec) History --------- Turn | Location | Event 4 | -11/Scrapyard | Discovered new exit (range 14) 177 | -11/Scrapyard | Entered Materials 246 | -10/Materials | Discovered new exit (range 3) 276 | -10/Materials | Entered Subcaves 286 | -10/Subcaves | Learned location of Zion (-6) 287 | -10/Subcaves | A swath of the cavern ceiling suddenly collapsed 490 | -10/Subcaves | Discovered new exit (range 10) 706 | -10/Subcaves | Visited Clippyterm 711 | -10/Subcaves | Identified exit to Recycling 711 | -10/Subcaves | Identified exit to Materials 711 | -10/Subcaves | Learned 40 Factory zone layouts 747 | -10/Subcaves | Build established: Mutant 1835 | -10/Subcaves | Disturbed a concealed Subdweller 2160 | -10/Subcaves | Ambushed by Subdweller buried in earth 2160 | -10/Subcaves | Ambushed by Subdweller buried in earth 2325 | -10/Subcaves | Core integrity fell below 50% 2956 | -10/Subcaves | Core integrity fell below 20% 3139 | -10/Subcaves | Destroyed by OM-XTB(R) with Subdweller Laser Last Messages --------------- 02966_ Subatomizers dissect the Disposable Heat Sink. 02971_ Acquired 51 matter. 02981_ Lgt. Treads destroyed. 02982_ 5C-831(R) suffers critical hit (Destroy). 02982_ Destroyed Sub. Optics. 02988_ 5C-831(R) destroyed. 02988_ Switching to secondary target: OZ-UUR(R). 02993_ OZ-UUR(R) affixes Scrap Shield Fragment to Scrap Shield. 02994_ OZ-UUR(R) destroyed. 03003_ Dropped Flight Unit. 03003_ Acquired Sub. Optics. 03006_ Dropped Seismic Detector. 03008_ Acquired 38 matter. 03013_ Acquired 32 matter. 03019_ Acquired Flight Unit. 03020_ Dropped Spk. Treads. 03046_ Subatomizers dissect the Disposable Heat Sink. Map ----- +----------------------------------------------------+ | ?????????????????????????????????????????????????? | | ?????????????????????????????????????????????????? | | ?????????????????????????????????????????????????? | | ?????????????????????????????????????????????????? | | ?????????????????????????????????????????????????? | | ?????????????????????????????????????????????????? | | ?????????????????????????????????????????????????? | | ?????????????????????????????????????????????????? | | ?????????????????????????????????????????????????? | | ?????????????????????????????????????????????????? | | ?????????????????????????????????????????????????? | | ?????????????????????????????????????????????????? | | ?????????????????????????????????????????????????? | | ?????????????????????????????????????????????????? | | ?????????????????????????????????????????????????? | | ?????????????????????????????????????????????????? | | ???????????????????????????????#?????????????????? | | ??????????????????????????????$##????????????????? | | ????????????????????????????? "#????????????????? | | ????????????????????????????? "?????????????????? | | ???????????????????????????? ??????????????????? | | ???????????????????????##### ???????????????????? | | ???????????????????????? ????????????????????? | | ???????????????????????? R##????????????????????? | | ???????????????????????## <#????????????????????? | | ?????????????????###?###<@ <###??????????????????? | | ?????????????????# ### < ## ???????? | | #####???#######?## #???????? | | ##### # # ### ##### """" ##????????? | | # #?? """" #?????????? | | ## """" """ " ????????? | | ## ## # ####? ""####"?????????????? | | ############# #????? #????????????????? | | #####??????## #????? #????????????????? | | ##??????## #????? #????????????????? | | #???????# ###????? ????????????????? | | ##????????# ???????????????? | | #??????????#""??????????????? | | ### ### # #### #???????????# "?????????????? | | ###??###????#????#####???????????????????????????? | | ?????????????????????????????????????????????????? | | ?????????????????????????????????????????????????? | | ?????????????????????????????????????????????????? | | ?????????????????????????????????????????????????? | | ?????????????????????????????????????????????????? | | ?????????????????????????????????????????????????? | | ?????????????????????????????????????????????????? | | ?????????????????????????????????????????????????? | | ?????????????????????????????????????????????????? | | ?????????????????????????????????????????????????? | +----------------------------------------------------+ Best States ------------- Heat Dissipation 25 Energy Generation 10 Energy Capacity 250 Matter Stores 243 Matter Capacity 300 Sight Range 21 Terrain Scan Density 10 Resistance: KI 20 Resistance: TH 20 Resistance: EX 20 Resistance: EM 20 Resistance: I 20 Resistance: S 20 Resistance: P 20 Evasion (%) 62 Recoil Reduction 2 Offensive Hacking 10 Item Schematics ----------------- None Robot Schematics ------------------ None Fabricated ------------ Nothing Alien Tech Used ----------------- None Achievements -------------- None Challenges ------------ None Game ------ Seed TargetGlidesysDissipator Manual? 0 Play Time 00:13:46 Cumulative 585.7 hours Start 2024.08.13 @ 12:11:23 End 2024.08.13 @ 12:23:47 Sessions 1 Manual Loads 0 Difficulty Adventurer Special Mode None Game No. 116 Rogue 0 Adventurer 116 Explorer 0 Win Type - Total 7 Types 4/0/1/2/0/0/0/0/0 Lore% 69 Gallery% 80 Achievement% 71 Wizard Run 0 Options --------- Layout 2 ASCII 0 Keyboard 0 Movement Mouse Keybinds 0 Fullscreen 1 Font 24/Smallcaps Map View 50x49 Zoom Use 0% Tactical HUD 1 Map Filters NONE Filters NONE Steam 1 RUN: e264a00f-7295-47d8-8ca5-1d28977827f1